fUSD/lending_fUSD_20260307
["ID","MTS","AMOUNT","RATE_DAILY","PERIOD"]
[407929904,1772922658280,-409.8274124,0.0004,14]
[407929905,1772922658292,-3090.07235305,0.0004,120]
[407929906,1772922658308,-10000.0,0.0004,7]
[407929907,1772922658318,-4723.10999477,0.0004,2]
[407929908,1772922658328,-392.67613806,0.0004,2]
[407929909,1772922658338,-1569.09552417,0.0004,2]
[407929910,1772922658348,-4130.78883297,0.0004,2]
[407929911,1772922658358,-219.96693925,0.0004,2]
[407929912,1772922658367,-961.69796989,0.0004,2]
[407929913,1772922658377,-602.8098304,0.0004,2]
[407929914,1772922658387,-316.43077466,0.0004,2]
[407929915,1772922658396,-162.48305797,0.0004,2]
[407929916,1772922658406,-1141.0,0.0004,120]
[407929917,1772922658416,-200.0,0.0004,120]
[407929918,1772922658425,-504.44232301,0.0004,29]
[407929919,1772922658434,-601.14908313,0.0004,120]
[407929920,1772922658444,-329.51147003,0.0004,10]
[407929921,1772922658453,-250.0,0.0004,7]
[407929922,1772922658463,-1000.0,0.0004,7]
[407929923,1772922658472,-154.0,0.0004,120]
[407929924,1772922658482,-1060.26967574,0.0004,120]
[407929925,1772922658492,-1994.46538507,0.0004,120]
[407929926,1772922658501,-600.0,0.0004,120]
[407929927,1772922658760,-3000.0,0.0004,120]
[407929928,1772922658770,-5029.94685847,0.0004,2]
[407929929,1772922658780,-5046.14509214,0.0004,3]
[407929930,1772922658789,-5040.0,0.0004,4]
[407929931,1772922658798,-5016.53334409,0.0004,5]
[407929932,1772922658807,-5020.62771563,0.0004,6]
[407929933,1772922658816,-8098.61425254,0.0004,10]
[407929934,1772922658826,-6962.447864,0.0004,4]
[407929935,1772922658835,-1038.66436586,0.0004,20]
[407929936,1772922658844,-161.1895054,0.0004,20]
[407929937,1772922658853,-160.0,0.0004,120]
[407929938,1772922658863,-2000.0,0.0004,30]
[407929939,1772922658872,-160.0,0.0004,120]
[407929940,1772922658881,-160.0,0.0004,10]
[407929941,1772922658890,-2172.68,0.0004,120]
[407929942,1772922658900,-2500.0,0.0004,120]
[407929943,1772922658909,-2407.92,0.0004,120]
[407929944,1772922658918,-3216.38,0.0004,120]
[407929945,1772922658928,-2996.37,0.0004,120]
[407929946,1772922658937,-157.37,0.0004,120]
[407929947,1772922658947,-8276.7,0.0004,120]
[407929948,1772922658956,-3561.64,0.0004,120]
[407929949,1772922658966,-15000.0,0.0004,120]
[407929950,1772922658975,-3423.11,0.0004,120]
[407929951,1772922658984,-10716.24,0.0004,120]
[407929952,1772922658994,-3000.0,0.0004,120]
[407929953,1772922659003,-2000.0,0.0004015,70]
[407929954,1772922659012,-150.0,0.00040165,2]
[407929955,1772922659022,-151.5,0.00040189,2]
[407929956,1772922659031,-6329.75080981,0.0004019,120]
[407929957,1772922659040,-49908.46,0.000402,120]
[407929958,1772922659050,-25000.0,0.0004021,120]
[407929959,1772922659059,-151.5,0.00040249,2]
[407929960,1772922659068,-200.071451,0.00040291,11]
[407929961,1772922659078,-2840.11037487,0.00040345,10]
[407929962,1772922659087,-602.57,0.000405,14]
[407929963,1772922659096,-4774.43,0.000405,14]
[407929964,1772922659106,-2000.0,0.000405,30]
[407929965,1772922659116,-2500.0,0.000405,120]
[407929966,1772922659125,-10716.24,0.00040547,120]
[407929967,1772922659135,-816.82748994,0.00040664,5]
[407929968,1772922659144,-538.18737703,0.000407,30]
[407929969,1772922659153,-169227.44477607,0.000407,6]
[407929970,1772922659162,-10012.81636023,0.000408,60]
[407929971,1772922659171,-208.4142,0.0004083,120]
[407929972,1772922659181,-152.0,0.00040843,12]
[407929973,1772922659190,-151.5,0.00040879,2]
[407929974,1772922659200,-503.0,0.00040897,24]
[407929975,1772922659209,-10000.0,0.000409,90]
[407929976,1772922659219,-151.5,0.00040916,2]
[407929977,1772922659228,-214.0,0.0004093,30]
[407929978,1772922659237,-81412.0,0.0004095,60]
[407929979,1772922659246,-1268.783,0.00040952,2]
[407929980,1772922659255,-922.0,0.00040952,2]
[407929981,1772922659268,-1212.0,0.00040952,2]
[407929982,1772922659277,-3223.11381649,0.00041,30]
[407929983,1772922659286,-152.0,0.00041,120]
[407929984,1772922659295,-3701.0,0.00041,30]
[407929985,1772922659306,-3000.0,0.00041,30]
[407929986,1772922659316,-363.84029285,0.00041,120]
[407929987,1772922659325,-2318.152568,0.00041,120]
[407929988,1772922659335,-5934.59664863,0.00041,120]
[407929989,1772922659345,-160.0,0.00041,120]
[407929990,1772922659354,-154.0,0.00041,120]
[407929991,1772922659364,-631.30356754,0.00041,120]
[407929992,1772922659373,-2500.0,0.00041,120]
[407929993,1772922659383,-1043.0,0.00041041,30]
[407929994,1772922659393,-300.0,0.00041068,22]
[407929995,1772922659403,-500.0,0.00041095,120]
[407929996,1772922659412,-443.97594913,0.00041095,120]
[407929997,1772922659421,-500.0,0.00041095,120]
[407929998,1772922659431,-1000.0,0.00041095,2]
[407929999,1772922659440,-500.29412284,0.00041095,2]
[407930000,1772922659449,-7165.59690882,0.00041095,5]
[407930001,1772922659459,-650.91,0.00041095,2]
[407930002,1772922659468,-650.91,0.00041095,2]
[407930003,1772922659477,-650.91,0.00041095,2]
[407930004,1772922659487,-650.91,0.00041095,2]
[407930005,1772922659496,-650.91,0.00041095,2]
[407930006,1772922659506,-650.91,0.00041095,2]
[407930007,1772922659515,-650.91,0.00041095,2]
[407930008,1772922659524,-650.91,0.00041095,2]
[407930009,1772922659534,-650.91,0.00041095,2]
[407930010,1772922659543,-650.91,0.00041095,2]
[407930011,1772922659552,-650.91,0.00041095,2]
[407930012,1772922659562,-650.91,0.00041095,2]
[407930013,1772922659572,-650.91,0.00041095,2]
[407930014,1772922659582,-650.91,0.00041095,2]
[407930015,1772922659591,-650.91,0.00041095,2]
[407930016,1772922659601,-650.91,0.00041095,2]
[407930017,1772922659611,-650.91,0.00041095,2]
[407930018,1772922659621,-650.91,0.00041095,2]
[407930019,1772922659630,-650.91,0.00041095,2]
[407930020,1772922659640,-650.91,0.00041095,2]
[407930021,1772922659649,-650.91,0.00041095,2]
[407930022,1772922659659,-650.91,0.00041095,2]
[407930023,1772922659668,-650.91,0.00041095,2]
[407930024,1772922659677,-650.9105144,0.00041095,2]
[407930025,1772922659687,-500.0,0.00041095,2]
[407930026,1772922659696,-500.0,0.00041095,2]
[407930027,1772922659706,-500.0,0.00041095,2]
[407930028,1772922659715,-500.0,0.00041095,2]
[407930029,1772922659724,-500.0,0.00041095,2]
[407930030,1772922659734,-500.0,0.00041095,2]
[407930031,1772922659743,-567.16815842,0.00041095,2]
[407930032,1772922659752,-500.0,0.00041095,2]
[407930033,1772922659761,-178.04219191,0.00041095,2]
[407930034,1772922659771,-500.0,0.00041095,2]
[407930035,1772922659780,-500.0,0.00041095,2]
[407930036,1772922659790,-500.0,0.00041095,2]
[407930037,1772922659799,-500.0,0.00041095,2]
[407930038,1772922659812,-500.0,0.00041095,2]
[407930039,1772922659821,-500.0,0.00041095,2]
[407930040,1772922659831,-500.0,0.00041095,2]
[407930041,1772922659840,-500.0,0.00041095,2]
[407930042,1772922659849,-500.0,0.00041095,2]
[407930043,1772922659858,-500.0,0.00041095,2]
[407930044,1772922659868,-500.0,0.00041095,2]
[407930045,1772922659877,-500.0,0.00041095,2]
[407930046,1772922659887,-500.0,0.00041095,2]
[407930047,1772922659898,-500.0,0.00041095,2]
[407930048,1772922659907,-500.0,0.00041095,2]
[407930049,1772922659917,-500.0,0.00041095,2]
[407930050,1772922659928,-500.0,0.00041095,2]
[407930051,1772922659937,-500.0,0.00041095,2]
[407930052,1772922659946,-500.0,0.00041095,2]
[407930053,1772922659959,-327.87,0.00041095,2]
[407930054,1772922659969,-4958.33,0.00041095,2]
[407930055,1772922659980,-4958.33,0.00041095,2]
[407930056,1772922659990,-4958.33,0.00041095,2]
[407930057,1772922659999,-4958.33,0.00041095,2]
[407930058,1772922660008,-4958.33,0.00041095,2]
[407930059,1772922660018,-4958.33,0.00041095,2]
[407930060,1772922660027,-4958.33,0.00041095,2]
[407930061,1772922660038,-4958.33,0.00041095,2]
[407930062,1772922660047,-4958.33,0.00041095,2]
[407930063,1772922660057,-4958.33,0.00041095,2]
[407930064,1772922660066,-4958.33,0.00041095,2]
[407930065,1772922660075,-4958.33,0.00041095,2]
[407930066,1772922660085,-4958.33,0.00041095,2]
[407930067,1772922660095,-4958.33,0.00041095,2]
[407930068,1772922660105,-4958.33,0.00041095,2]
[407930069,1772922660114,-4958.33,0.00041095,2]
[407930070,1772922660124,-4958.33,0.00041095,2]
[407930071,1772922660133,-4958.33,0.00041095,2]
[407930072,1772922660142,-4958.33,0.00041095,2]
[407930073,1772922660151,-4958.33,0.00041095,2]
[407930074,1772922660160,-4958.33,0.00041095,2]
[407930075,1772922660169,-4958.33,0.00041095,2]
[407930076,1772922660178,-4958.33,0.00041095,2]
[407930077,1772922660188,-4958.39,0.00041095,2]
[407930078,1772922660197,-500.0,0.00041095,2]
[407930079,1772922660206,-500.0,0.00041095,2]
[407930080,1772922660215,-500.0,0.00041095,2]
[407930081,1772922660224,-500.0,0.00041095,2]
[407930082,1772922660233,-500.0,0.00041095,2]
[407930083,1772922660243,-500.0,0.00041095,2]
[407930084,1772922660252,-500.0,0.00041095,2]
[407930085,1772922660265,-500.0,0.00041095,2]
[407930086,1772922660274,-500.0,0.00041095,2]
[407930087,1772922660283,-500.0,0.00041095,2]
[407930088,1772922660293,-500.0,0.00041095,2]
[407930089,1772922660303,-500.0,0.00041095,2]
[407930090,1772922660312,-500.0,0.00041095,2]
[407930091,1772922660321,-500.0,0.00041095,2]
[407930092,1772922660332,-500.0,0.00041095,2]
[407930093,1772922660341,-500.0,0.00041095,2]
[407930094,1772922660350,-315.93751328,0.00041095,2]
[407930095,1772922660359,-500.0,0.00041095,2]
[407930096,1772922660369,-439.68820122,0.00041095,2]
[407930097,1772922660378,-500.0,0.00041095,120]
[407930098,1772922660387,-497.49770464,0.00041095,120]
[407930099,1772922660396,-500.0,0.00041095,120]
[407930100,1772922660405,-280.14519051,0.00041095,120]
[407930101,1772922660415,-500.0,0.00041095,120]
[407930102,1772922660424,-500.0,0.00041095,120]
[407930103,1772922660433,-500.0,0.00041095,120]
[407930104,1772922660442,-500.0,0.00041095,120]
[407930105,1772922660451,-500.0,0.00041095,120]
[407930106,1772922660461,-500.0,0.00041095,120]
[407930107,1772922660470,-500.0,0.00041095,120]
[407930108,1772922660479,-500.0,0.00041095,120]
[407930109,1772922660488,-502.65710127,0.00041095,120]
[407930110,1772922660498,-500.0,0.00041095,120]
[407930111,1772922660507,-500.0,0.00041095,120]
[407930112,1772922660516,-500.0,0.00041095,120]
[407930113,1772922660525,-500.0,0.00041095,120]
[407930114,1772922660534,-500.0,0.00041095,120]
[407930115,1772922660544,-500.0,0.00041095,120]
[407930116,1772922660553,-500.0,0.00041095,120]
[407930117,1772922660563,-500.0,0.00041095,120]
[407930118,1772922660572,-500.0,0.00041095,120]
[407930119,1772922660581,-500.0,0.00041095,120]
[407930120,1772922660590,-500.0,0.00041095,120]
[407930121,1772922660600,-427.17,0.00041095,2]
[407930122,1772922660609,-427.17,0.00041095,2]
[407930123,1772922660619,-427.17,0.00041095,2]
[407930124,1772922660628,-427.17,0.00041095,2]
[407930125,1772922660638,-427.17,0.00041095,2]
[407930126,1772922660647,-427.17,0.00041095,2]
[407930127,1772922660656,-427.17,0.00041095,2]
[407930128,1772922660665,-427.17,0.00041095,2]
[407930129,1772922660674,-427.17,0.00041095,2]
[407930130,1772922660684,-427.17,0.00041095,2]
[407930131,1772922660693,-427.17,0.00041095,2]
[407930132,1772922660702,-427.17,0.00041095,2]
[407930133,1772922660712,-427.17,0.00041095,2]
[407930134,1772922660721,-427.17,0.00041095,2]
[407930135,1772922660730,-427.17,0.00041095,2]
[407930136,1772922660740,-427.17,0.00041095,2]
[407930137,1772922660750,-427.17,0.00041095,2]
[407930138,1772922660759,-427.17,0.00041095,2]
[407930139,1772922660769,-427.17,0.00041095,2]
[407930140,1772922660778,-427.17,0.00041095,2]
[407930141,1772922660787,-427.17,0.00041095,2]
[407930142,1772922660797,-427.17,0.00041095,2]
[407930143,1772922660806,-427.17,0.00041095,2]
[407930144,1772922660815,-427.26762383,0.00041095,2]
[407930145,1772922660825,-1372.14,0.00041095,2]
[407930146,1772922660834,-1372.14,0.00041095,2]
[407930147,1772922660844,-1372.14,0.00041095,2]
[407930148,1772922660854,-1372.14,0.00041095,2]
[407930149,1772922660863,-1372.14,0.00041095,2]
[407930150,1772922660873,-1372.14,0.00041095,2]
[407930151,1772922660882,-1372.14,0.00041095,2]
[407930152,1772922660892,-1372.14,0.00041095,2]
[407930153,1772922660901,-1372.14,0.00041095,2]
[407930154,1772922660910,-1372.14,0.00041095,2]
[407930155,1772922660920,-1372.14,0.00041095,2]
[407930156,1772922660930,-1372.14,0.00041095,2]
[407930157,1772922660939,-1372.14,0.00041095,2]
[407930158,1772922660948,-1372.14,0.00041095,2]
[407930159,1772922660956,-1372.14,0.00041095,2]
[407930160,1772922660966,-1372.14,0.00041095,2]
[407930161,1772922661068,-1372.14,0.00041095,2]
[407930162,1772922661078,-1372.14,0.00041095,2]
[407930163,1772922661087,-1372.14,0.00041095,2]
[407930164,1772922661096,-1372.14,0.00041095,2]
[407930165,1772922661105,-1372.14,0.00041095,2]
[407930166,1772922661114,-1372.14,0.00041095,2]
[407930167,1772922661123,-1372.14,0.00041095,2]
[407930168,1772922661132,-1372.26319331,0.00041095,2]
[407930169,1772922661141,-500.0,0.00041095,2]
[407930170,1772922661150,-500.0,0.00041095,2]
[407930171,1772922661159,-500.0,0.00041095,2]
[407930172,1772922661168,-500.0,0.00041095,2]
[407930173,1772922661178,-500.0,0.00041095,2]
[407930174,1772922661188,-500.0,0.00041095,2]
[407930175,1772922661198,-256.60229066,0.00041095,2]
[407930176,1772922661209,-10716.24,0.00041095,120]
[407930177,1772922661219,-500.0,0.00041095,2]
[407930178,1772922661229,-500.0,0.00041095,2]
[407930179,1772922661241,-500.0,0.00041095,2]
[407930180,1772922661254,-500.0,0.00041095,2]
[407930181,1772922661266,-500.0,0.00041095,2]
[407930182,1772922661276,-500.0,0.00041095,2]
[407930183,1772922661286,-500.0,0.00041095,2]
[407930184,1772922661297,-350.95941297,0.00041095,2]
[407930185,1772922661307,-328.39543052,0.00041095,2]
[407930186,1772922661319,-746.0,0.00041096,120]
[407930187,1772922661330,-150.0,0.00041096,10]
[407930188,1772922661339,-800.0,0.00041096,14]
[407930189,1772922661348,-800.0,0.00041096,14]
[407930190,1772922661357,-800.0,0.00041096,14]
[407930191,1772922661366,-800.0,0.00041096,14]
[407930192,1772922661375,-800.0,0.00041096,14]
[407930193,1772922661385,-800.0,0.00041096,14]
[407930194,1772922661394,-800.0,0.00041096,14]
[407930195,1772922661403,-800.0,0.00041096,14]
[407930196,1772922661412,-300.0,0.00041096,10]
[407930197,1772922661421,-150.0,0.00041096,10]
[407930198,1772922661431,-800.0,0.00041096,14]
[407930199,1772922661440,-800.0,0.00041096,14]
[407930200,1772922661449,-800.0,0.00041096,14]
[407930201,1772922661458,-800.0,0.00041096,14]
[407930202,1772922661467,-800.0,0.00041096,14]
[407930203,1772922661476,-800.0,0.00041096,14]
[407930204,1772922661484,-800.0,0.00041096,14]
[407930205,1772922661494,-800.0,0.00041096,14]
[407930206,1772922661503,-50000.0,0.00041096,60]
[407930207,1772922661512,-151.0,0.00041096,120]
[407930208,1772922661521,-151.0,0.00041096,120]
[407930209,1772922661530,-151.0,0.00041096,120]
[407930210,1772922661539,-151.0,0.00041096,120]
[407930211,1772922661549,-151.118432,0.00041096,120]
[407930212,1772922661558,-151.0,0.00041096,120]
[407930213,1772922661567,-153.575453,0.00041096,120]
[407930214,1772922661576,-151.0,0.00041096,120]
[407930215,1772922661584,-151.0,0.00041096,120]
[407930216,1772922661594,-151.0,0.00041096,120]
[407930217,1772922661603,-151.0,0.00041096,120]
[407930218,1772922661612,-151.0,0.00041096,120]
[407930219,1772922661620,-153.724482,0.00041096,120]
[407930220,1772922661629,-151.0,0.00041096,120]
[407930221,1772922661639,-151.0,0.00041096,120]
[407930222,1772922661647,-151.0,0.00041096,120]
[407930223,1772922661656,-151.0,0.00041096,120]
[407930224,1772922661666,-151.0,0.00041096,120]
[407930225,1772922661675,-153.129833,0.00041096,120]
[407930226,1772922661684,-151.0,0.00041096,120]
[407930227,1772922661693,-151.0,0.00041096,120]
[407930228,1772922661702,-151.0,0.00041096,120]
[407930229,1772922661711,-151.0,0.00041096,120]
[407930230,1772922661720,-151.0,0.00041096,120]
[407930231,1772922661729,-198.646575,0.00041096,120]
[407930232,1772922661738,-151.0,0.00041096,120]
[407930233,1772922661747,-151.0,0.00041096,120]
[407930234,1772922661756,-151.0,0.00041096,120]
[407930235,1772922661765,-151.0,0.00041096,120]
[407930236,1772922661774,-151.0,0.00041096,120]
[407930237,1772922661784,-151.0,0.00041096,120]
[407930238,1772922661793,-212.814289,0.00041096,120]
[407930239,1772922661803,-151.0,0.00041096,120]
[407930240,1772922661812,-180.92709,0.00041096,120]
[407930241,1772922661821,-162.49977,0.00041096,120]
[407930242,1772922661830,-151.0,0.00041096,2]
[407930243,1772922661840,-151.0,0.00041096,2]
[407930244,1772922661849,-151.0,0.00041096,2]
[407930245,1772922661859,-151.0,0.00041096,2]
[407930246,1772922661868,-151.0,0.00041096,2]
[407930247,1772922661876,-151.0,0.00041096,2]
[407930248,1772922661886,-151.0,0.00041096,2]
[407930249,1772922661895,-201.043831,0.00041096,2]
[407930250,1772922661904,-151.0,0.00041096,120]
[407930251,1772922661914,-151.0,0.00041096,120]
[407930252,1772922661923,-151.0,0.00041096,120]
[407930253,1772922661932,-151.0,0.00041096,120]
[407930254,1772922661941,-151.0,0.00041096,120]
[407930255,1772922661950,-151.0,0.00041096,120]
[407930256,1772922661959,-151.0,0.00041096,120]
[407930257,1772922661968,-151.0,0.00041096,120]
[407930258,1772922661977,-258.570411,0.00041096,15]
[407930259,1772922661987,-151.0,0.00041096,120]
[407930260,1772922661996,-258.570411,0.00041096,15]
[407930261,1772922662006,-151.0,0.00041096,120]
[407930262,1772922662016,-258.570411,0.00041096,15]
[407930263,1772922662025,-151.0,0.00041096,120]
[407930264,1772922662035,-258.570411,0.00041096,15]
[407930265,1772922662044,-151.0,0.00041096,120]
[407930266,1772922662053,-258.570411,0.00041096,15]
[407930267,1772922662063,-151.0,0.00041096,120]
[407930268,1772922662072,-151.0,0.00041096,120]
[407930269,1772922662081,-258.570411,0.00041096,15]
[407930270,1772922662092,-151.0,0.00041096,120]
[407930271,1772922662102,-258.570411,0.00041096,15]
[407930272,1772922662112,-151.0,0.00041096,120]
[407930273,1772922662122,-151.0,0.00041096,120]
[407930274,1772922662132,-258.570411,0.00041096,15]
[407930275,1772922662141,-151.0,0.00041096,120]
[407930276,1772922662151,-151.0,0.00041096,120]
[407930277,1772922662161,-258.570411,0.00041096,15]
[407930278,1772922662171,-151.0,0.00041096,120]
[407930279,1772922662181,-151.0,0.00041096,120]
[407930280,1772922662192,-258.570411,0.00041096,15]
[407930281,1772922662201,-151.0,0.00041096,120]
[407930282,1772922662211,-151.0,0.00041096,120]
[407930283,1772922662220,-151.0,0.00041096,120]
[407930284,1772922662229,-151.0,0.00041096,120]
[407930285,1772922662239,-258.570411,0.00041096,15]
[407930286,1772922662250,-208.481166,0.00041096,120]
[407930287,1772922662264,-151.0,0.00041096,120]
[407930288,1772922662275,-258.570411,0.00041096,15]
[407930289,1772922662285,-151.0,0.00041096,120]
[407930290,1772922662295,-258.570411,0.00041096,15]
[407930291,1772922662305,-151.0,0.00041096,120]
[407930292,1772922662314,-258.570411,0.00041096,15]
[407930293,1772922662323,-231.469725,0.00041096,120]
[407930294,1772922662333,-258.570411,0.00041096,15]
[407930295,1772922662343,-258.570411,0.00041096,15]
[407930296,1772922662353,-258.570411,0.00041096,15]
[407930297,1772922662363,-258.570411,0.00041096,15]
[407930298,1772922662372,-258.570411,0.00041096,15]
[407930299,1772922662382,-258.570416,0.00041096,15]
[407930300,1772922662392,-366.456719,0.00041096,2]
[407930301,1772922662402,-366.456719,0.00041096,2]
[407930302,1772922662414,-366.456719,0.00041096,2]
[407930303,1772922662424,-366.456719,0.00041096,2]
[407930304,1772922662434,-366.456719,0.00041096,2]
[407930305,1772922662443,-366.456719,0.00041096,2]
[407930306,1772922662453,-366.456719,0.00041096,2]
[407930307,1772922662462,-366.456719,0.00041096,2]
[407930308,1772922662472,-366.456719,0.00041096,2]
[407930309,1772922662482,-366.456719,0.00041096,2]
[407930310,1772922662491,-366.456719,0.00041096,2]
[407930311,1772922662501,-366.456719,0.00041096,2]
[407930312,1772922662510,-366.456719,0.00041096,2]
[407930313,1772922662520,-366.456719,0.00041096,2]
[407930314,1772922662529,-366.456719,0.00041096,2]
[407930315,1772922662538,-366.456719,0.00041096,2]
[407930316,1772922662547,-366.456719,0.00041096,2]
[407930317,1772922662557,-366.456719,0.00041096,2]
[407930318,1772922662566,-366.456719,0.00041096,2]
[407930319,1772922662575,-366.456724,0.00041096,2]
[407930320,1772922662584,-460.575364,0.00041096,120]
[407930321,1772922662593,-460.575364,0.00041096,120]
[407930322,1772922662604,-460.575364,0.00041096,120]
[407930323,1772922662613,-460.575364,0.00041096,120]
[407930324,1772922662623,-460.575364,0.00041096,120]
[407930325,1772922662632,-460.575364,0.00041096,120]
[407930326,1772922662642,-460.575364,0.00041096,120]
[407930327,1772922662651,-460.575364,0.00041096,120]
[407930328,1772922662660,-460.575364,0.00041096,120]
[407930329,1772922662669,-460.575364,0.00041096,120]
[407930330,1772922662678,-460.575364,0.00041096,120]
[407930331,1772922662687,-460.575364,0.00041096,120]
[407930332,1772922662696,-460.575364,0.00041096,120]
[407930333,1772922662705,-460.575364,0.00041096,120]
[407930334,1772922662714,-460.575364,0.00041096,120]
[407930335,1772922662723,-460.575364,0.00041096,120]
[407930336,1772922662732,-460.575364,0.00041096,120]
[407930337,1772922662740,-460.575364,0.00041096,120]
[407930338,1772922662749,-460.575364,0.00041096,120]
[407930339,1772922662758,-460.575373,0.00041096,120]
[407930340,1772922662767,-1158.457551,0.00041096,120]
[407930341,1772922662775,-1158.457551,0.00041096,120]
[407930342,1772922662784,-1158.457551,0.00041096,120]
[407930343,1772922662802,-1158.457551,0.00041096,120]
[407930344,1772922662813,-1158.457551,0.00041096,120]
[407930345,1772922662822,-1158.457551,0.00041096,120]
[407930346,1772922662832,-1158.457551,0.00041096,120]
[407930347,1772922662841,-1158.457551,0.00041096,120]
[407930348,1772922662850,-1158.457551,0.00041096,120]
[407930349,1772922662859,-1158.457551,0.00041096,120]
[407930350,1772922662868,-1158.457551,0.00041096,120]
[407930351,1772922662878,-1158.457551,0.00041096,120]
[407930352,1772922662887,-1158.457551,0.00041096,120]
[407930353,1772922662896,-1158.457551,0.00041096,120]
[407930354,1772922662906,-1158.457551,0.00041096,120]
[407930355,1772922662915,-1158.457551,0.00041096,120]
[407930356,1772922662924,-1158.457551,0.00041096,120]
[407930357,1772922662934,-1158.457551,0.00041096,120]
[407930358,1772922662943,-1158.457551,0.00041096,120]
[407930359,1772922662952,-1158.457555,0.00041096,120]
[407930360,1772922662961,-151.0,0.00041096,120]
[407930361,1772922662971,-160.035567,0.00041096,120]
[407930362,1772922662981,-151.0,0.00041096,120]
[407930363,1772922662991,-151.0,0.00041096,120]
[407930364,1772922663000,-151.0,0.00041096,120]
[407930365,1772922663010,-151.0,0.00041096,120]
[407930366,1772922663020,-151.0,0.00041096,120]
[407930367,1772922663030,-151.0,0.00041096,120]
[407930368,1772922663039,-151.0,0.00041096,120]
[407930369,1772922663049,-151.0,0.00041096,120]
[407930370,1772922663059,-151.0,0.00041096,120]
[407930371,1772922663068,-151.0,0.00041096,120]
[407930372,1772922663078,-151.0,0.00041096,120]
[407930373,1772922663087,-151.0,0.00041096,120]
[407930374,1772922663098,-151.0,0.00041096,120]
[407930375,1772922663108,-151.0,0.00041096,120]
[407930376,1772922663117,-151.0,0.00041096,120]
[407930377,1772922663127,-244.713279,0.00041096,120]
[407930378,1772922663136,-151.0,0.00041096,120]
[407930379,1772922663146,-201.769071,0.00041096,120]
[407930380,1772922663156,-182.337392,0.00041096,120]
[407930381,1772922663166,-151.0,0.00041096,120]
[407930382,1772922663175,-154.751382,0.00041096,120]
[407930383,1772922663185,-152.668534,0.00041096,120]
[407930384,1772922663196,-151.0,0.00041096,120]
[407930385,1772922663205,-151.0,0.00041096,120]
[407930386,1772922663215,-159.073951,0.00041096,120]
[407930387,1772922663225,-151.0,0.00041096,120]
[407930388,1772922663235,-151.0,0.00041096,120]
[407930389,1772922663245,-151.0,0.00041096,120]
[407930390,1772922663255,-151.0,0.00041096,120]
[407930391,1772922663268,-151.0,0.00041096,120]
[407930392,1772922663278,-238.156535,0.00041096,120]
[407930393,1772922663287,-151.0,0.00041096,120]
[407930394,1772922663297,-151.0,0.00041096,120]
[407930395,1772922663308,-203.134611,0.00041096,120]
[407930396,1772922663317,-151.0,0.00041096,120]
[407930397,1772922663327,-151.706303,0.00041096,120]
[407930398,1772922663338,-151.0,0.00041096,120]
[407930399,1772922663348,-212.308772,0.00041096,120]
[407930400,1772922663358,-151.0,0.00041096,120]
[407930401,1772922663372,-275.827453,0.00041096,120]
[407930402,1772922663382,-2487.576622,0.00041096,120]
[407930403,1772922663391,-2487.576622,0.00041096,120]